bitfinex/quotes_BTCUSD_20251201
["timestamp","ask_amount","ask_price","bid_price","bid_amount"]
[1764583194670,4.8451993,86894.0,86893.0,0.101]
[1764583195123,4.8451993,86894.0,86893.0,0.1]
[1764583195385,4.8471993,86894.0,86893.0,0.101]
[1764583195823,4.8461993,86894.0,86893.0,0.101]
[1764583196029,4.8471993,86894.0,86893.0,0.101]
[1764583197165,4.86525498,86894.0,86893.0,0.101]
[1764583200998,4.75155207,86894.0,86893.0,0.101]
[1764583201139,4.7208543,86894.0,86893.0,0.101]
[1764583202678,4.3978543,86894.0,86893.0,0.101]
[1764583203753,2.3978543,86894.0,86893.0,0.101]
[1764583203900,4.3978543,86894.0,86893.0,0.101]
[1764583204737,4.7208543,86894.0,86893.0,0.101]
[1764583206103,4.83455721,86894.0,86893.0,0.101]
[1764583207487,4.7208543,86894.0,86893.0,0.101]
[1764583207692,4.70279862,86894.0,86893.0,0.101]
[1764583208347,4.64027563,86894.0,86893.0,0.101]
[1764583208556,4.64755563,86894.0,86893.0,0.101]
[1764583209181,4.59077563,86894.0,86893.0,0.101]
[1764583209471,4.55416548,86894.0,86893.0,0.1]
[1764583209792,4.23116548,86894.0,86893.0,0.1]
[1764583209953,4.23216548,86894.0,86893.0,0.103]
[1764583210156,4.23016548,86894.0,86893.0,0.1]
[1764583210385,4.23116548,86894.0,86893.0,0.107]
[1764583210993,4.55416548,86894.0,86893.0,0.107]
[1764583212058,2.324,86894.0,86893.0,0.30674]
[1764583212257,2.55416548,86894.0,86893.0,0.30674]
[1764583212789,2.55416548,86894.0,86893.0,0.1529]
[1764583216771,2.55416548,86894.0,86893.0,0.107]
[1764583221932,2.55416548,86894.0,86893.0,0.1994]
[1764583222314,2.75898839,86894.0,86893.0,0.107]
[1764583223285,2.75798839,86894.0,86893.0,0.1]
[1764583223507,2.64428548,86894.0,86893.0,0.1]
[1764583223680,2.64528548,86894.0,86893.0,0.106]
[1764583224446,2.64413686,86894.0,86893.0,0.106]
[1764583224650,0.64528548,86894.0,86893.0,0.106]
[1764583224859,2.64528548,86894.0,86893.0,0.106]
[1764583225692,2.32228548,86894.0,86893.0,0.106]
[1764583225894,2.23116548,86894.0,86893.0,0.31885]
[1764583226052,2.001,86894.0,86893.0,0.30825]
[1764583226857,2.23116548,86894.0,86893.0,0.30825]
[1764583227083,2.001,86894.0,86893.0,0.30825]
[1764583228560,2.001,86894.0,86893.0,0.53841813]
[1764583230039,2.0,86894.0,86893.0,0.53241813]
[1764583230242,2.0,86898.0,86897.0,0.23015754]
[1764583230644,2.0,86898.0,86897.0,0.38315754]
[1764583231595,2.002,86898.0,86897.0,0.39415754]
[1764583232334,2.002,86898.0,86897.0,0.39515754]
[1764583234603,2.002,86898.0,86897.0,0.165]
[1764583234836,2.002,86898.0,86897.0,0.39515754]
[1764583239151,0.002,86898.0,86897.0,0.39515754]
[1764583239361,2.002,86898.0,86897.0,0.39515754]
[1764583242408,0.002,86898.0,86897.0,0.39515754]
[1764583244673,0.002,86898.0,86897.0,0.40243754]
[1764583246331,0.001,86899.0,86898.0,0.23015489]
[1764583246560,0.001,86899.0,86898.0,0.38315489]
[1764583248163,0.001,86899.0,86898.0,0.38515489]
[1764583248571,0.002,86899.0,86898.0,0.39315489]
[1764583250663,0.002,86899.0,86898.0,0.42775064]
[1764583254483,0.00134579,86899.0,86898.0,0.42775064]
[1764583259808,2.0,86931.0,86928.0,0.01150377]
[1764583260011,2.24157179,86931.0,86927.0,0.04968]
[1764583260324,2.0,86930.0,86927.0,0.14509]
[1764583260528,2.23007025,86930.0,86927.0,0.14509]
[1764583260863,2.0,86929.0,86928.0,0.09541]
[1764583261079,2.23007321,86929.0,86928.0,0.09541]
[1764583261273,2.23007321,86929.0,86928.0,0.1581]
[1764583262046,2.23007546,86928.0,86927.0,0.04968]
[1764583262251,2.23007546,86928.0,86927.0,0.14509]
[1764583262464,2.23007546,86928.0,86927.0,0.20778]
[1764583263057,2.22990284,86928.0,86927.0,0.20778]
[1764583263558,2.22990284,86928.0,86927.0,0.20778]
[1764583263900,2.22990284,86928.0,86927.0,0.20878]
[1764583264103,2.23190284,86928.0,86927.0,0.20878]
[1764583264461,2.22990284,86928.0,86927.0,0.11337]
[1764583267171,0.00177786,86932.0,86927.0,0.20878]
[1764583267352,0.00177786,86932.0,86929.0,0.23007216]
[1764583267353,2.0,86931.0,86929.0,0.23007216]
[1764583267553,2.0,86931.0,86930.0,0.1581]
[1764583268859,2.001,86931.0,86930.0,0.1581]
[1764583269289,0.001,86931.0,86930.0,0.1581]
[1764583269483,2.001,86931.0,86930.0,0.1581]
[1764583269726,2.001,86931.0,86930.0,0.1591]
[1764583271384,2.001,86931.0,86930.0,0.18210701]
[1764583271626,2.001,86931.0,86930.0,0.1591]
[1764583271816,0.001,86931.0,86930.0,0.1591]
[1764583272018,0.001,86931.0,86930.0,0.18210701]
[1764583272630,0.001,86931.0,86930.0,0.41217718]
[1764583272934,0.001,86931.0,86930.0,0.38917017]
[1764583275019,0.001,86931.0,86930.0,0.42375335]
[1764583275390,0.00748,86960.0,86959.0,0.21849352]
[1764583275658,2.0002,86960.0,86959.0,0.4068666]
[1764583275837,2.0002,86960.0,86959.0,0.20216]
[1764583276448,2.0002,86960.0,86959.0,0.10675]
[1764583276676,2.2301908,86960.0,86959.0,0.10675]
[1764583277421,2.2311908,86960.0,86959.0,0.10675]
[1764583278072,2.01042848,86960.0,86959.0,0.10675]
[1764583279392,2.01042848,86960.0,86959.0,0.19974]
[1764583279592,1.78043768,86960.0,86959.0,0.19974]
[1764583279954,2.01054649,86960.0,86959.0,0.19974]
[1764583280361,1.78055569,86960.0,86959.0,0.19974]
[1764583280623,2.01054649,86960.0,86959.0,0.19974]
[1764583281174,2.01142962,86960.0,86959.0,0.19974]
[1764583281521,2.01142962,86960.0,86950.0,0.00742899]
[1764583281522,0.01149967,86959.0,86950.0,0.00742899]
[1764583281658,1.77943768,86951.0,86948.0,0.04493]
[1764583282044,1.77943768,86951.0,86950.0,0.06387]
[1764583282452,1.77943768,86951.0,86950.0,0.15686]
[1764583282713,2.00945228,86951.0,86950.0,0.15786]
[1764583282853,1.77943768,86951.0,86950.0,0.15786]
[1764583283062,2.00945228,86951.0,86950.0,0.15786]
[1764583283726,2.00945228,86951.0,86950.0,0.15886]
[1764583283909,2.00945228,86951.0,86950.0,0.15786]
[1764583284246,2.00945228,86951.0,86950.0,0.15886]
[1764583284661,2.00945228,86951.0,86950.0,0.30716]
[1764583284852,0.2300146,86951.0,86950.0,0.30716]
[1764583285033,2.2300146,86951.0,86950.0,0.30716]
[1764583285672,2.0,86951.0,86950.0,0.30716]
[1764583285874,2.0,86952.0,86950.0,0.30716]
[1764583286089,2.23001411,86952.0,86951.0,0.09299]
[1764583286248,2.23001411,86952.0,86951.0,0.15686]
[1764583287268,2.23001411,86952.0,86951.0,0.15786]
[1764583287632,2.23064497,86952.0,86951.0,0.15886]
[1764583288701,2.00063086,86952.0,86951.0,0.15886]
[1764583288859,2.23064282,86952.0,86951.0,0.15886]
[1764583289057,2.00063086,86952.0,86951.0,0.15886]
[1764583289648,2.23064282,86952.0,86951.0,0.15886]
[1764583292673,2.23064282,86952.0,86951.0,0.002]
[1764583293244,2.25787427,86952.0,86951.0,0.002]
[1764583293632,2.25787427,86952.0,86951.0,0.001]
[1764583293969,0.23001989,86949.0,86948.0,0.04493]
[1764583294166,0.23001989,86949.0,86948.0,0.13423]
[1764583294619,0.23001989,86949.0,86948.0,0.19835]
[1764583295027,0.23001989,86949.0,86948.0,0.19935]
[1764583296757,2.23001989,86949.0,86948.0,0.001]
[1764583297182,4.7632928,86949.0,86948.0,0.001]
[1764583297561,4.91293497,86949.0,86948.0,0.001]
[1764583297905,4.23004106,86941.0,86940.0,0.00742899]
[1764583298089,4.23745106,86941.0,86940.0,0.00742899]
[1764583298278,4.29151106,86941.0,86940.0,0.00742899]
[1764583299694,4.24145106,86941.0,86940.0,0.00742899]
[1764583300130,4.29551106,86941.0,86940.0,0.00742899]
[1764583300290,0.23007017,86930.0,86929.0,0.1356]
[1764583300475,2.23007017,86930.0,86929.0,0.0463]
[1764583300674,2.23007017,86930.0,86929.0,0.11042]
[1764583301104,2.23007017,86930.0,86929.0,0.19972]
[1764583301508,2.23018812,86930.0,86929.0,0.19972]
[1764583302112,2.23218812,86930.0,86929.0,0.19972]
[1764583302330,2.23018812,86930.0,86929.0,0.19972]
[1764583302629,2.23018812,86930.0,86929.0,0.20072]
[1764583304755,0.23018812,86930.0,86929.0,0.20072]
[1764583305363,2.23018812,86930.0,86929.0,0.20072]
[1764583312053,2.23018812,86930.0,86929.0,0.11142]
[1764583314111,2.23018812,86930.0,86929.0,0.20076]
[1764583317410,2.23018812,86930.0,86929.0,0.001]
[1764583318393,0.23008605,86924.0,86923.0,0.08934]
[1764583318714,0.23008605,86924.0,86923.0,0.15149]
[1764583322661,0.23008605,86924.0,86923.0,0.06215]
[1764583322878,0.23010987,86915.0,86914.0,0.0463]
[1764583323228,0.23010987,86915.0,86904.0,0.04428]
[1764583323229,0.01150655,86907.0,86904.0,0.04428]
[1764583323463,0.23013635,86905.0,86904.0,0.04428]
[1764583323605,0.23013635,86905.0,86904.0,0.13362]
[1764583323808,0.23013635,86905.0,86904.0,0.04428]
[1764583324163,2.23014694,86901.0,86900.0,0.00742899]
[1764583325558,2.23014694,86901.0,86900.0,0.00842899]
[1764583325761,2.23014694,86901.0,86900.0,0.00942899]
[1764583325916,2.23014694,86901.0,86900.0,0.16091899]
[1764583331397,2.0,86901.0,86900.0,0.16091899]
[1764583331819,2.0,86901.0,86900.0,0.15349]
[1764583332000,2.0,86904.0,86900.0,0.39514706]
[1764583332195,2.0,86905.0,86903.0,0.06215]
[1764583332417,2.0,86905.0,86904.0,0.06215]
[1764583332948,0.23013635,86905.0,86904.0,0.15149]
[1764583333161,2.0,86905.0,86904.0,0.15149]
[1764583333512,2.0,86907.0,86905.0,0.2301343]
[1764583333719,2.0,86908.0,86906.0,0.10643]
[1764583333930,2.0,86909.0,86908.0,0.06215]
[1764583334329,2.0,86909.0,86908.0,0.15149]
[1764583334964,2.23012576,86909.0,86908.0,0.15149]
[1764583335374,2.23012576,86909.0,86908.0,0.15249]
[1764583336373,0.23012576,86909.0,86908.0,0.15349]
[1764583336703,2.23012576,86909.0,86908.0,0.15349]
[1764583340380,2.0,86909.0,86908.0,0.15349]
[1764583340602,2.23012576,86909.0,86908.0,0.15349]
[1764583342076,0.23012576,86909.0,86908.0,0.15349]
[1764583342316,2.23012576,86909.0,86908.0,0.15349]
[1764583344244,2.0,86911.0,86909.0,0.23012511]
[1764583344455,0.323,86915.0,86913.0,0.07929]
[1764583344622,0.32306785,86915.0,86914.0,0.05715]
[1764583344794,0.32306785,86915.0,86914.0,0.14014]
[1764583345544,0.23017772,86915.0,86914.0,0.14014]
[1764583345741,0.55317772,86915.0,86914.0,0.14014]
[1764583346377,0.55311252,86914.0,86913.0,0.02214]
[1764583346601,2.55311252,86914.0,86913.0,0.02214]
[1764583347124,2.55311252,86914.0,86913.0,0.003321]
[1764583347339,2.55311252,86914.0,86906.0,0.033259]
[1764583347340,0.23013105,86907.0,86906.0,0.033259]
[1764583347855,0.23013105,86907.0,86906.0,0.173399]
[1764583348706,0.23012841,86908.0,86906.0,0.4035327]
[1764583348869,0.23012841,86908.0,86907.0,0.14014]
[1764583349908,0.23012841,86908.0,86907.0,0.14114]
[1764583350291,0.23012841,86908.0,86907.0,0.14214]
[1764583350492,0.24163261,86909.0,86907.0,0.14214]
[1764583350674,0.24163261,86909.0,86908.0,0.14014]
[1764583351502,0.2416243,86912.0,86908.0,0.37026841]
[1764583351756,2.0,86911.0,86909.0,0.31311549]
[1764583351929,2.0,86910.0,86909.0,0.08299]
[1764583352134,2.0,86910.0,86908.0,0.23012841]
[1764583352273,2.0,86910.0,86909.0,0.05715]
[1764583352780,2.0,86910.0,86909.0,0.14014]
[1764583353192,2.0,86911.0,86909.0,0.37026576]
[1764583353398,2.0,86911.0,86910.0,0.14014]
[1764583354624,2.23012046,86911.0,86910.0,0.14014]
[1764583354829,2.23012046,86911.0,86910.0,0.14114]
[1764583355786,2.0,86913.0,86910.0,0.15264615]
[1764583355994,2.32306785,86915.0,86914.0,0.14154252]
[1764583356199,2.32306785,86915.0,86914.0,0.23171252]
[1764583357482,2.32306785,86915.0,86914.0,0.38171252]
[1764583359150,6.785e-05,86915.0,86914.0,0.38171252]
[1764583360162,6.785e-05,86915.0,86914.0,0.38271252]
[1764583360363,6.785e-05,86915.0,86914.0,0.38671252]
[1764583360535,2.01150231,86939.0,86934.0,0.01150297]
[1764583360680,2.01150231,86939.0,86933.0,0.01150311]
[1764583360681,2.0,86936.0,86933.0,0.01150311]
[1764583360885,2.23005777,86935.0,86933.0,0.13299]
[1764583361124,2.0,86934.0,86933.0,0.13299]
[1764583361328,2.0,86934.0,86933.0,0.04282]
[1764583361566,2.0,86934.0,86933.0,0.10425]
[1764583361991,2.0,86934.0,86933.0,0.19442]
[1764583362247,2.0,86934.0,86933.0,0.42448223]
[1764583362441,2.0,86936.0,86934.0,0.23005905]
[1764583362644,0.23005451,86936.0,86934.0,0.09017]
[1764583362869,2.0,86935.0,86933.0,0.28438499]
[1764583363196,0.001,86934.0,86933.0,0.28438534]
[1764583363398,2.0,86934.0,86933.0,0.28438534]
[1764583363614,2.0,86935.0,86933.0,0.34581534]
[1764583363810,0.23005958,86934.0,86933.0,0.04282]
[1764583364024,2.23005958,86934.0,86933.0,0.04282]
[1764583364334,2.23005958,86934.0,86933.0,0.10425]
[1764583364335,2.23105958,86934.0,86933.0,0.10425]
[1764583364467,2.23105958,86934.0,86933.0,0.19442]
[1764583365089,2.23105958,86934.0,86933.0,0.42448223]
[1764583365090,2.001,86934.0,86933.0,0.42448223]
[1764583365494,2.001,86934.0,86933.0,0.19442]
[1764583366802,2.23044992,86934.0,86933.0,0.19442]
[1764583368217,2.23105958,86934.0,86933.0,0.19442]
[1764583371211,2.0,86934.0,86933.0,0.19442]
[1764583371420,2.23005958,86934.0,86933.0,0.19442]
[1764583372632,2.0,86934.0,86933.0,0.19442]
[1764583373416,2.0,86935.0,86933.0,0.42448223]
[1764583373574,2.0,86935.0,86934.0,0.1544]
[1764583373959,2.2300585,86935.0,86934.0,0.1544]
[1764583375351,0.23007281,86929.0,86928.0,0.13611]
[1764583375498,0.23007281,86929.0,86928.0,0.04282]
[1764583376600,0.23007281,86929.0,86928.0,0.19112]
[1764583376800,0.23007281,86929.0,86928.0,0.1483]
[1764583377029,2.77401484,86929.0,86928.0,0.1493]
[1764583377361,2.59634281,86929.0,86928.0,0.1493]
[1764583377487,2.59634281,86929.0,86928.0,0.1503]
[1764583377929,2.59634281,86929.0,86928.0,0.1493]
[1764583378100,2.59634281,86929.0,86928.0,0.1483]
[1764583378488,2.59734281,86929.0,86928.0,0.1483]
[1764583381403,0.59734281,86929.0,86928.0,0.1483]
[1764583381559,2.59734281,86929.0,86928.0,0.1483]
[1764583382236,2.70914281,86929.0,86928.0,0.1483]
[1764583382773,2.23009399,86921.0,86920.0,0.00742899]
[1764583383285,2.23009399,86921.0,86920.0,0.16182899]
[1764583383638,2.0,86928.0,86920.0,0.38449664]
[1764583383852,2.323,86928.0,86927.0,0.23007811]
[1764583384054,2.323,86928.0,86927.0,0.06111]
[1764583384258,2.323,86928.0,86927.0,0.1544]
[1764583384690,2.323,86928.0,86927.0,0.38447811]
[1764583385315,2.0,86937.0,86933.0,0.01150311]
[1764583385651,2.0,86938.0,86934.0,0.28817255]
[1764583385922,2.0,86938.0,86935.0,0.09329]
[1764583385923,2.0,86937.0,86935.0,0.09329]
[1764583386422,2.0,86937.0,86936.0,0.10772]
[1764583386769,2.0,86937.0,86936.0,0.20101]
[1764583387030,2.0,86938.0,86936.0,0.20101]
[1764583387329,2.0,86938.0,86937.0,0.1544]
[1764583388277,2.0,86938.0,86937.0,0.38445164]
[1764583388472,2.001,86938.0,86937.0,0.38445164]
[1764583389749,0.001,86938.0,86937.0,0.53275164]
[1764583390913,8.595e-05,86939.0,86938.0,0.230049]
[1764583391134,8.595e-05,86939.0,86938.0,0.532749]
[1764583391422,8.595e-05,86939.0,86938.0,0.3027]
[1764583391730,0.2301323,86939.0,86938.0,0.3027]
[1764583391852,0.2301323,86939.0,86938.0,0.1483]
[1764583392291,0.2301323,86939.0,86938.0,0.1513]
[1764583392525,2.5958223,86939.0,86938.0,0.1483]
[1764583392834,2.5958223,86939.0,86920.0,0.00742899]
[1764583392835,0.23008287,86926.0,86920.0,0.00742899]
[1764583392950,0.23012311,86910.0,86909.0,0.04661]
[1764583393151,2.23012311,86910.0,86909.0,0.04661]
[1764583393410,0.23013635,86905.0,86904.0,0.04661]
[1764583393563,0.23016284,86895.0,86894.0,0.03894459]
[1764583394193,0.23016284,86895.0,86894.0,0.03901244]
[1764583394757,0.323,86898.0,86894.0,0.42357692]
[1764583394995,2.0,86897.0,86894.0,0.13230244]
[1764583395213,2.0,86897.0,86895.0,0.09329]
[1764583395413,2.0,86897.0,86895.0,0.323452]
[1764583395674,2.323,86897.0,86896.0,0.06111]
[1764583395976,2.323,86897.0,86896.0,0.1544]
[1764583396188,2.323,86897.0,86896.0,0.38456019]
[1764583396784,2.323,86897.0,86896.0,0.1544]
[1764583396980,2.55315754,86897.0,86896.0,0.1554]
[1764583397204,2.323,86897.0,86896.0,0.1554]
[1764583397591,2.323,86897.0,86896.0,0.1574]
[1764583397995,2.323,86897.0,86896.0,0.38756019]
[1764583400608,2.323,86897.0,86896.0,0.1574]
[1764583401025,2.55315754,86897.0,86896.0,0.1574]
[1764583401426,2.323,86897.0,86896.0,0.1574]
[1764583401908,2.323,86897.0,86896.0,0.38756019]
[1764583402102,2.323,86897.0,86896.0,0.1574]
[1764583402587,2.323,86897.0,86896.0,0.38756019]
[1764583402721,2.323,86897.0,86896.0,0.1574]
[1764583403329,2.323,86897.0,86896.0,0.38756019]
[1764583403522,2.0,86902.0,86898.0,0.2416617]
[1764583403791,2.0,86902.0,86898.0,0.24166245]
[1764583403981,2.0,86903.0,86901.0,0.10688]
[1764583404264,2.55314165,86903.0,86902.0,0.06096]
[1764583404462,2.2301443,86902.0,86901.0,0.04592]
[1764583406025,2.2301443,86902.0,86901.0,0.04692]
[1764583406222,2.2301443,86902.0,86901.0,0.19437]
[1764583409448,2.6338043,86902.0,86901.0,0.1493]
[1764583409858,2.5539543,86902.0,86901.0,0.1493]
[1764583410436,2.5531443,86902.0,86901.0,0.1493]
[1764583410940,2.5531443,86902.0,86901.0,0.1483]
[1764583410941,2.5541443,86902.0,86901.0,0.1483]
[1764583413922,2.5541443,86902.0,86901.0,0.14745]
[1764583414101,0.324,86902.0,86901.0,0.14745]
[1764583414313,0.001,86902.0,86901.0,0.37759694]
[1764583414720,2.0,86908.0,86905.0,0.01150681]
[1764583414960,2.0,86912.0,86907.0,0.10688]
[1764583415104,2.23012345,86910.0,86907.0,0.04592]
[1764583415402,2.23012576,86909.0,86908.0,0.08649]
[1764583415604,2.0,86909.0,86908.0,0.08649]
[1764583415801,2.0,86909.0,86908.0,0.14745]
[1764583416087,2.23012576,86909.0,86908.0,0.14745]
[1764583416204,2.0,86909.0,86908.0,0.14745]
[1764583416408,2.23012576,86909.0,86908.0,0.14745]
[1764583416618,0.23009053,86923.0,86916.0,0.01150536]
[1764583416823,4.0,86930.0,86924.0,0.23008475]
[1764583417024,0.24157434,86930.0,86922.0,0.04592]
[1764583417242,2.0,86927.0,86923.0,0.08263]
[1764583417479,2.0,86925.0,86923.0,0.08163]
[1764583417743,0.323,86926.0,86923.0,0.09313443]
[1764583417744,2.0,86926.0,86923.0,0.09313443]
[1764583417912,2.0,86929.0,86927.0,0.23007811]
[1764583418135,0.23007136,86930.0,86928.0,0.05473]
[1764583418275,2.0,86929.0,86926.0,0.05424403]
[1764583418697,2.0,86929.0,86928.0,0.05473]
[1764583419310,2.0,86929.0,86928.0,0.05573]
[1764583419519,2.0,86929.0,86928.0,0.13836]
[1764583419793,2.0,86930.0,86928.0,0.13836]
[1764583419995,2.323,86930.0,86929.0,0.13736]
[1764583420603,0.323,86930.0,86929.0,0.13736]
[1764583421228,0.00025238,86940.0,86937.0,0.01150258]
[1764583421454,2.32325238,86940.0,86939.0,0.09747]
[1764583421885,2.10545525,86940.0,86939.0,0.1801]
[1764583423243,2.33649895,86940.0,86939.0,0.1801]
[1764583423442,2.10545525,86940.0,86939.0,0.1801]
[1764583423651,2.33549895,86940.0,86939.0,0.1801]
[1764583426707,2.10545525,86940.0,86939.0,0.1801]
[1764583426900,2.10545525,86940.0,86939.0,0.41014635]
[1764583427106,2.10545525,86940.0,86939.0,0.1801]
[1764583427421,2.33549895,86940.0,86939.0,0.1801]
[1764583432318,2.10545525,86940.0,86939.0,0.1801]
[1764583432714,2.33549895,86940.0,86939.0,0.1801]
[1764583435368,2.33549895,86940.0,86939.0,0.04274]
[1764583435564,0.01150231,86939.0,86936.0,0.04274]
[1764583435897,0.01150231,86939.0,86931.0,0.01150337]
[1764583435898,0.23006565,86932.0,86930.0,0.00999999]
[1764583436102,0.23011517,86913.0,86909.0,0.04127]
[1764583436296,0.01150575,86913.0,86909.0,0.04133785]
[1764583436495,0.01150589,86912.0,86909.0,0.04133785]
[1764583436757,0.24162136,86913.0,86911.0,0.05776]
[1764583436962,0.24162136,86913.0,86910.0,0.08807]
[1764583436963,0.23011782,86912.0,86910.0,0.08807]
[1764583437300,0.23011782,86912.0,86911.0,0.05776]
[1764583437684,0.23011782,86912.0,86911.0,0.14583]
[1764583439038,0.23011782,86912.0,86911.0,0.14883]
[1764583439201,0.23011782,86912.0,86911.0,0.14983]
[1764583439744,0.24161858,86914.0,86911.0,0.14983]
[1764583439945,0.24161858,86914.0,86913.0,0.07895]
[1764583440792,2.23011782,86912.0,86911.0,0.003]
[1764583441017,2.23011782,86912.0,86909.0,6.785e-05]
[1764583441018,2.55312311,86910.0,86909.0,6.785e-05]
[1764583441216,4.56202311,86910.0,86909.0,6.785e-05]
[1764583441420,4.65297311,86910.0,86909.0,6.785e-05]
[1764583441847,4.76667602,86910.0,86909.0,6.785e-05]
[1764583442492,4.76667602,86910.0,86909.0,0.00106785]
[1764583442829,4.65297311,86910.0,86909.0,0.00106785]
[1764583444424,4.65297311,86910.0,86909.0,6.785e-05]
[1764583444825,4.65497311,86910.0,86909.0,6.785e-05]
[1764583445177,4.65297311,86910.0,86909.0,6.785e-05]
[1764583445384,4.65497311,86910.0,86909.0,6.785e-05]
[1764583447734,2.64769311,86910.0,86909.0,6.785e-05]
[1764583447936,2.56402311,86910.0,86909.0,6.785e-05]
[1764583448775,2.56040311,86910.0,86909.0,6.785e-05]
[1764583448978,2.56040311,86910.0,86909.0,0.08813785]
[1764583449202,2.56040311,86910.0,86909.0,0.00106785]
[1764583449818,2.56040311,86910.0,86909.0,0.14689785]
[1764583449819,2.55312311,86910.0,86909.0,0.14689785]
[1764583450274,2.23012311,86910.0,86909.0,0.14689785]
[1764583450641,2.23012311,86910.0,86909.0,0.00106785]
[1764583453339,2.76511737,86910.0,86909.0,0.00106785]
[1764583453540,4.68322311,86910.0,86909.0,0.00106785]
[1764583454335,4.68322311,86910.0,86909.0,6.785e-05]
[1764583454672,4.68422311,86910.0,86909.0,6.785e-05]
[1764583458676,4.7467461,86910.0,86909.0,6.785e-05]
[1764583458853,4.86044901,86910.0,86909.0,6.785e-05]
[1764583459400,0.86044901,86910.0,86909.0,6.785e-05]
[1764583459550,4.85944901,86910.0,86909.0,6.785e-05]
[1764583459962,4.58746948,86910.0,86909.0,6.785e-05]
[1764583460185,4.58346948,86910.0,86909.0,6.785e-05]
[1764583460595,4.58746948,86910.0,86909.0,6.785e-05]
[1764583461370,4.59474948,86910.0,86909.0,6.785e-05]
[1764583462703,4.59074948,86910.0,86909.0,6.785e-05]
[1764583463124,4.59174948,86910.0,86909.0,6.785e-05]
[1764583463321,4.59074948,86910.0,86909.0,6.785e-05]
[1764583463755,4.59374948,86910.0,86909.0,6.785e-05]
[1764583472247,0.59374948,86910.0,86909.0,6.785e-05]
[1764583472478,4.59374948,86910.0,86909.0,6.785e-05]
[1764583478119,4.53122649,86910.0,86909.0,6.785e-05]
[1764583478990,4.52822649,86910.0,86909.0,6.785e-05]
[1764583479201,4.52922649,86910.0,86909.0,6.785e-05]
[1764583480718,4.37965941,86910.0,86909.0,6.785e-05]
[1764583481155,4.60978252,86910.0,86909.0,6.785e-05]
[1764583484389,4.55485311,86910.0,86909.0,6.785e-05]
[1764583484595,4.23840311,86910.0,86909.0,6.785e-05]
[1764583485019,4.56140311,86910.0,86909.0,6.785e-05]
[1764583485390,0.56140311,86910.0,86909.0,6.785e-05]
[1764583485590,4.56140311,86910.0,86909.0,6.785e-05]
[1764583487820,2.56140311,86910.0,86909.0,0.13937785]
[1764583488168,2.55412311,86910.0,86909.0,0.13937785]
[1764583488382,4.71617602,86910.0,86909.0,6.785e-05]
[1764583488615,4.74717342,86910.0,86909.0,6.785e-05]
[1764583488809,4.71617602,86910.0,86909.0,6.785e-05]
[1764583490761,4.60247311,86910.0,86909.0,6.785e-05]
[1764583494980,4.55412311,86910.0,86909.0,6.785e-05]
[1764583495301,4.56140311,86910.0,86909.0,6.785e-05]
[1764583495844,4.56254311,86910.0,86909.0,6.785e-05]
[1764583497667,4.56140311,86910.0,86909.0,6.785e-05]
[1764583498446,2.55412311,86910.0,86909.0,0.05366785]
[1764583498653,2.55412311,86910.0,86909.0,0.13937785]
[1764583498654,2.001,86910.0,86909.0,0.13937785]
[1764583499313,2.001,86910.0,86909.0,0.36950361]
[1764583499562,2.001,86910.0,86909.0,0.13937785]
[1764583499755,2.001,86910.0,86909.0,0.36950361]
[1764583499929,2.001,86910.0,86909.0,0.37050361]
[1764583500285,0.61568583,86895.0,86894.0,0.03894459]
[1764583500419,4.70095583,86895.0,86894.0,0.03894459]
[1764583500616,4.73712823,86895.0,86894.0,0.03894459]
[1764583500839,0.77174469,86895.0,86894.0,0.03894459]
[1764583501032,4.73427445,86895.0,86894.0,0.03894459]
[1764583501236,4.72699445,86895.0,86894.0,0.03894459]
[1764583501609,4.58664914,86895.0,86894.0,0.03894459]
[1764583501814,4.60470197,86895.0,86894.0,0.03894459]
[1764583502141,4.49803252,86895.0,86894.0,0.03894459]
[1764583502343,4.48725969,86895.0,86894.0,0.03894459]
[1764583502572,4.49125969,86895.0,86894.0,0.03894459]
[1764583502743,4.49225969,86895.0,86894.0,0.03894459]
[1764583503086,2.40698969,86895.0,86894.0,0.03894459]
[1764583503289,2.17835418,86895.0,86894.0,0.17825459]
[1764583503435,2.01128,86895.0,86894.0,0.17825459]
[1764583503834,2.24144284,86895.0,86894.0,0.17825459]
[1764583504029,2.23744284,86895.0,86894.0,0.09254459]
[1764583504444,2.23844284,86895.0,86894.0,0.09254459]
[1764583504841,2.5,86895.0,86894.0,0.40842007]
[1764583505014,2.0,86899.0,86894.0,0.40942007]
[1764583505214,2.0,86898.0,86895.0,0.09721814]
[1764583505420,2.0,86896.0,86895.0,0.32738098]
[1764583505785,2.0,86896.0,86895.0,0.13931]
[1764583505988,2.0,86896.0,86895.0,0.36947284]
[1764583506607,1.80026485,86896.0,86895.0,0.36947284]
[1764583506896,0.01150721,86902.0,86895.0,0.36947284]
[1764583506897,2.323,86903.0,86902.0,0.23014322]
[1764583507103,2.33028,86903.0,86902.0,0.28374322]
[1764583507305,2.33028,86903.0,86902.0,0.36945322]
[1764583508358,2.0,86911.0,86907.0,0.01150655]
[1764583508562,2.0,86914.0,86912.0,0.23011758]
[1764583508850,2.00728,86913.0,86912.0,0.24162347]
[1764583509210,2.00728,86913.0,86912.0,0.29522347]
[1764583509632,2.00728,86913.0,86912.0,0.38093347]
[1764583510006,2.00728,86913.0,86912.0,0.13931]
[1764583510445,2.23739517,86913.0,86912.0,0.13931]
[1764583511375,2.23739517,86913.0,86912.0,0.14231]
[1764583512805,2.00728,86913.0,86912.0,0.14231]
[1764583513542,2.00728,86913.0,86912.0,0.37242782]
[1764583514101,2.00728,86913.0,86912.0,0.14231]
[1764583514528,2.00728,86913.0,86912.0,0.37242782]
[1764583514857,2.0,86923.0,86920.0,0.01150483]
[1764583515062,2.0,86919.0,86918.0,0.01150509]
[1764583515265,2.0,86919.0,86917.0,0.28391885]
[1764583515394,2.0,86919.0,86918.0,0.13931]
[1764583516924,2.23009928,86919.0,86918.0,0.13931]
[1764583517955,2.23009928,86919.0,86918.0,0.14131]
[1764583519045,0.23009928,86919.0,86918.0,0.0556]
[1764583519250,2.25338928,86919.0,86918.0,0.002]